[Event "Late-Titled-Tuesday-Blitz-February-06-2024"]
[Site "Chess.com"]
[Date "2024.02.06"]
[Round "4"]
[White "Doublekk14"]
[Black "Quattroporte300"]
[Result "0-1"]
[WhiteElo "2304"]
[BlackElo "2381"]
[TimeControl "180+1"]
[EndTime "14:40:51 PST"]
[Termination "Quattroporte300 won on time"]

1. c4 {[%clk 0:03:00.9]} 1... c6 {[%clk 0:02:58]} 2. e4 {[%clk 0:02:56.9]} 2...
d5 {[%clk 0:02:57.9]} 3. exd5 {[%clk 0:02:54.8]} 3... cxd5 {[%clk 0:02:58.8]} 4.
d4 {[%clk 0:02:50.1]} 4... Nf6 {[%clk 0:02:58]} 5. Nc3 {[%clk 0:02:49.6]} 5...
g6 {[%clk 0:02:55.3]} 6. Nf3 {[%clk 0:02:48.6]} 6... Bg7 {[%clk 0:02:55.7]} 7.
h3 {[%clk 0:02:44.7]} 7... O-O {[%clk 0:02:55.8]} 8. Be2 {[%clk 0:02:40.4]} 8...
Nc6 {[%clk 0:02:54]} 9. O-O {[%clk 0:02:36.8]} 9... dxc4 {[%clk 0:02:51.6]} 10.
Bxc4 {[%clk 0:02:28.4]} 10... Bf5 {[%clk 0:02:51.2]} 11. Be3 {[%clk 0:02:22]}
11... Rc8 {[%clk 0:02:49.5]} 12. Bb5 {[%clk 0:02:08.9]} 12... a6 {[%clk
0:02:47]} 13. Be2 {[%clk 0:02:05.3]} 13... Nb4 {[%clk 0:02:43.5]} 14. Rc1 {[%clk
0:02:03.6]} 14... Nfd5 {[%clk 0:02:41.4]} 15. a3 {[%clk 0:01:57.6]} 15... Nxe3
{[%clk 0:02:37.4]} 16. fxe3 {[%clk 0:01:57.5]} 16... Nd5 {[%clk 0:02:32.5]} 17.
Qd2 {[%clk 0:01:56.7]} 17... Qd6 {[%clk 0:02:22.9]} 18. Nxd5 {[%clk 0:01:44.9]}
18... Qxd5 {[%clk 0:02:20.7]} 19. Bd3 {[%clk 0:01:45]} 19... Bxd3 {[%clk
0:02:10.9]} 20. Qxd3 {[%clk 0:01:44.3]} 20... e5 {[%clk 0:02:07.4]} 21. e4
{[%clk 0:01:32.3]} 21... Qd6 {[%clk 0:02:05.8]} 22. d5 {[%clk 0:01:23.3]} 22...
Bh6 {[%clk 0:02:02.5]} 23. Rc4 {[%clk 0:01:15.1]} 23... b5 {[%clk 0:01:58.1]}
24. Rc3 {[%clk 0:01:13.2]} 24... Bf4 {[%clk 0:01:36.9]} 25. b4 {[%clk
0:01:10.3]} 25... f5 {[%clk 0:01:31.1]} 26. Rxc8 {[%clk 0:01:06.2]} 26... Rxc8
{[%clk 0:01:28.5]} 27. exf5 {[%clk 0:01:06.3]} 27... Rd8 {[%clk 0:01:09.5]} 28.
Rd1 {[%clk 0:01:01]} 28... Re8 {[%clk 0:01:02.6]} 29. Qe4 {[%clk 0:00:59.1]}
29... gxf5 {[%clk 0:00:58.2]} 30. Qxf5 {[%clk 0:00:57.2]} 30... Qg6 {[%clk
0:00:58.9]} 31. Qxg6+ {[%clk 0:00:50.1]} 31... hxg6 {[%clk 0:00:59.8]} 32. d6
{[%clk 0:00:34.6]} 32... Rd8 {[%clk 0:00:34.5]} 33. Rd5 {[%clk 0:00:34.2]} 33...
Kf7 {[%clk 0:00:32.1]} 34. Nxe5+ {[%clk 0:00:33.7]} 34... Bxe5 {[%clk
0:00:31.7]} 35. Rxe5 {[%clk 0:00:33.6]} 35... Rxd6 {[%clk 0:00:32.3]} 36. Re3
{[%clk 0:00:33.4]} 36... Kf6 {[%clk 0:00:27.9]} 37. g4 {[%clk 0:00:32.7]} 37...
Kg5 {[%clk 0:00:24.3]} 38. Kg2 {[%clk 0:00:32.5]} 38... Kf4 {[%clk 0:00:24.9]}
39. Rf3+ {[%clk 0:00:31.5]} 39... Ke4 {[%clk 0:00:25.4]} 40. Rc3 {[%clk
0:00:30.7]} 40... g5 {[%clk 0:00:21.8]} 41. Kg3 {[%clk 0:00:27.9]} 41... Rd1
{[%clk 0:00:18.2]} 42. Rc5 {[%clk 0:00:17.4]} 42... Rd3+ {[%clk 0:00:17.8]} 43.
Kg2 {[%clk 0:00:16.8]} 43... Rd2+ {[%clk 0:00:09.5]} 44. Kg3 {[%clk 0:00:14.5]}
44... Rd3+ {[%clk 0:00:09.8]} 45. Kf2 {[%clk 0:00:13.9]} 45... Rxa3 {[%clk
0:00:08.1]} 46. Rxg5 {[%clk 0:00:12.3]} 46... Rxh3 {[%clk 0:00:08.5]} 47. Rg6
{[%clk 0:00:12.5]} 47... Ra3 {[%clk 0:00:03.4]} 48. g5 {[%clk 0:00:09.7]} 48...
Kf5 {[%clk 0:00:03.8]} 49. Rg8 {[%clk 0:00:09.6]} 49... Ra4 {[%clk 0:00:04.3]}
50. g6 {[%clk 0:00:08.3]} 50... Kf6 {[%clk 0:00:02.6]} 51. Kf3 {[%clk
0:00:06.4]} 51... Rxb4 {[%clk 0:00:02.7]} 52. Ra8 {[%clk 0:00:06.3]} 52... Ra4
{[%clk 0:00:03.1]} 53. Rg8 {[%clk 0:00:05.9]} 53... a5 {[%clk 0:00:02.3]} 54.
Ke3 {[%clk 0:00:06.1]} 54... Ra3+ {[%clk 0:00:02.6]} 55. Kd2 {[%clk 0:00:06]}
55... a4 {[%clk 0:00:03.1]} 56. Kc2 {[%clk 0:00:06.2]} 56... Rg3 {[%clk
0:00:03]} 57. Rb8 {[%clk 0:00:05.4]} 57... Rg5 {[%clk 0:00:03.3]} 58. Kc3 {[%clk
0:00:04.9]} 58... Kxg6 {[%clk 0:00:03.1]} 59. Kb4 {[%clk 0:00:04.3]} 59... Kh5
{[%clk 0:00:03.2]} 60. Rh8+ {[%clk 0:00:03.6]} 60... Kg4 {[%clk 0:00:03.6]} 61.
Rc8 {[%clk 0:00:03.3]} 61... Kf4 {[%clk 0:00:03.7]} 62. Rf8+ {[%clk 0:00:03.1]}
62... Ke4 {[%clk 0:00:03.6]} 63. Re8+ {[%clk 0:00:04]} 63... Re5 {[%clk
0:00:03.9]} 64. Rd8 {[%clk 0:00:04.2]} 64... Rd5 {[%clk 0:00:03.6]} 65. Re8+
{[%clk 0:00:04.2]} 65... Kd4 {[%clk 0:00:04.1]} 66. Rh8 {[%clk 0:00:04.8]} 66...
Kd3 {[%clk 0:00:04.4]} 67. Rh3+ {[%clk 0:00:05.1]} 67... Kc2 {[%clk 0:00:04.1]}
68. Rh2+ {[%clk 0:00:05.3]} 68... Rd2 {[%clk 0:00:03.5]} 69. Rh8 {[%clk
0:00:05.3]} 69... Rd4+ {[%clk 0:00:03.9]} 70. Kxb5 {[%clk 0:00:05.1]} 70... a3
{[%clk 0:00:03.8]} 71. Rh2+ {[%clk 0:00:05.5]} 71... Kb3 {[%clk 0:00:04]} 72.
Rh3+ {[%clk 0:00:05.6]} 72... Kb2 {[%clk 0:00:04]} 73. Rh2+ {[%clk 0:00:05.7]}
73... Kc3 {[%clk 0:00:04.1]} 74. Rh3+ {[%clk 0:00:05.2]} 74... Rd3 {[%clk
0:00:04.6]} 75. Rh8 {[%clk 0:00:04.9]} 75... Kb3 {[%clk 0:00:05]} 76. Ra8 {[%clk
0:00:04.5]} 76... a2 {[%clk 0:00:05.4]} 77. Kc5 {[%clk 0:00:04.5]} 77... Rd1
{[%clk 0:00:05.4]} 78. Rb8+ {[%clk 0:00:04.5]} 78... Kc2 {[%clk 0:00:06]} 0-1

[Event "Late-Titled-Tuesday-Blitz-February-06-2024"]
[Site "Chess.com"]
[Date "2024.02.06"]
[Round "4"]
[White "Onthequiet"]
[Black "GeorgiosSouleidis"]
[Result "1/2-1/2"]
[WhiteElo "2459"]
[BlackElo "2693"]
[TimeControl "180+1"]
[EndTime "14:40:54 PST"]
[Termination "Game drawn by repetition"]

1. d4 {[%clk 0:03:00]} 1... Nf6 {[%clk 0:03:00.1]} 2. Nf3 {[%clk 0:03:00.4]}
2... g6 {[%clk 0:03:00.6]} 3. Bg5 {[%clk 0:03:00.8]} 3... Bg7 {[%clk 0:03:00.9]}
4. Nbd2 {[%clk 0:03:01.4]} 4... d5 {[%clk 0:03:01.4]} 5. c3 {[%clk 0:03:01.9]}
5... O-O {[%clk 0:03:01.6]} 6. e3 {[%clk 0:03:02.4]} 6... Nbd7 {[%clk
0:03:01.6]} 7. b4 {[%clk 0:03:02.7]} 7... Re8 {[%clk 0:02:59.9]} 8. Be2 {[%clk
0:03:02.5]} 8... e5 {[%clk 0:03:00.3]} 9. O-O {[%clk 0:03:02.2]} 9... e4 {[%clk
0:02:58.9]} 10. Ne1 {[%clk 0:03:02.5]} 10... c6 {[%clk 0:02:59.5]} 11. a4 {[%clk
0:03:01.7]} 11... Nf8 {[%clk 0:02:59.9]} 12. Nc2 {[%clk 0:03:01.2]} 12... h6
{[%clk 0:02:56.3]} 13. Bh4 {[%clk 0:03:01.2]} 13... h5 {[%clk 0:02:48]} 14. c4
{[%clk 0:02:57.8]} 14... N8h7 {[%clk 0:02:45.3]} 15. b5 {[%clk 0:02:52.6]} 15...
Be6 {[%clk 0:02:26.1]} 16. a5 {[%clk 0:02:42.1]} 16... a6 {[%clk 0:02:23.4]} 17.
bxc6 {[%clk 0:02:39.4]} 17... bxc6 {[%clk 0:02:23.7]} 18. Nb4 {[%clk 0:02:31.6]}
18... Qc8 {[%clk 0:01:56.2]} 19. c5 {[%clk 0:02:17.3]} 19... Bg4 {[%clk
0:01:33]} 20. Bxg4 {[%clk 0:01:50.9]} 20... Nxg4 {[%clk 0:01:33.9]} 21. h3
{[%clk 0:01:49.5]} 21... Nh6 {[%clk 0:01:32.4]} 22. Bg3 {[%clk 0:01:46.3]} 22...
Nf5 {[%clk 0:01:32.5]} 23. Bh2 {[%clk 0:01:45.1]} 23... Qd7 {[%clk 0:01:21.5]}
24. Qe2 {[%clk 0:01:40]} 24... Ng5 {[%clk 0:00:47.4]} 25. Rfb1 {[%clk
0:01:09.4]} 25... Nxd4 {[%clk 0:00:33.8]} 26. exd4 {[%clk 0:01:04.5]} 26... Bxd4
{[%clk 0:00:34.7]} 27. Nb3 {[%clk 0:00:37.6]} 27... Bxa1 {[%clk 0:00:34.8]} 28.
Rxa1 {[%clk 0:00:38.5]} 28... d4 {[%clk 0:00:35.3]} 29. Bd6 {[%clk 0:00:38.2]}
29... d3 {[%clk 0:00:35]} 30. Qe3 {[%clk 0:00:36.8]} 30... Ne6 {[%clk
0:00:20.4]} 31. Nd2 {[%clk 0:00:24.4]} 31... Ng7 {[%clk 0:00:19.6]} 32. Qf4
{[%clk 0:00:20.6]} 32... f5 {[%clk 0:00:18.2]} 33. Nc4 {[%clk 0:00:19.8]} 33...
Qe6 {[%clk 0:00:16.9]} 34. Nb6 {[%clk 0:00:18.6]} 34... Qf6 {[%clk 0:00:10.5]}
35. Rf1 {[%clk 0:00:17.6]} 35... g5 {[%clk 0:00:10.8]} 36. Qc1 {[%clk
0:00:17.2]} 36... Rad8 {[%clk 0:00:11.2]} 37. Nxa6 {[%clk 0:00:16.9]} 37... f4
{[%clk 0:00:09.8]} 38. Nc7 {[%clk 0:00:16.7]} 38... Rf8 {[%clk 0:00:08.8]} 39.
Qc4+ {[%clk 0:00:17]} 39... Kh8 {[%clk 0:00:07.8]} 40. Bxf8 {[%clk 0:00:16.9]}
40... Rxf8 {[%clk 0:00:07.6]} 41. Nd7 {[%clk 0:00:15.5]} 41... Qf7 {[%clk
0:00:07.1]} 42. Qxf7 {[%clk 0:00:15.5]} 42... Rxf7 {[%clk 0:00:08]} 43. Ne5
{[%clk 0:00:15.2]} 43... Rxc7 {[%clk 0:00:08]} 44. a6 {[%clk 0:00:13.9]} 44...
d2 {[%clk 0:00:04.8]} 45. Ra1 {[%clk 0:00:11.5]} 45... e3 {[%clk 0:00:03.8]} 46.
fxe3 {[%clk 0:00:11.1]} 46... fxe3 {[%clk 0:00:04.7]} 47. Kf1 {[%clk 0:00:12]}
47... Ra7 {[%clk 0:00:05]} 48. Ke2 {[%clk 0:00:12]} 48... Ne6 {[%clk 0:00:05.1]}
49. Nxc6 {[%clk 0:00:10.7]} 49... Ra8 {[%clk 0:00:05.2]} 50. Ne7 {[%clk
0:00:09.2]} 50... Nxc5 {[%clk 0:00:05]} 51. Ng6+ {[%clk 0:00:09]} 51... Kg7
{[%clk 0:00:04.8]} 52. Ne5 {[%clk 0:00:09.1]} 52... Rxa6 {[%clk 0:00:03.2]} 53.
Rxa6 {[%clk 0:00:09.1]} 53... Nxa6 {[%clk 0:00:04.1]} 54. Nc4 {[%clk 0:00:09.8]}
54... Nb4 {[%clk 0:00:03]} 55. Nxe3 {[%clk 0:00:10]} 55... Nc6 {[%clk
0:00:03.2]} 56. Kxd2 {[%clk 0:00:09.9]} 56... Kg6 {[%clk 0:00:04]} 57. Ke2
{[%clk 0:00:10.4]} 57... Ne5 {[%clk 0:00:04.5]} 58. Kf2 {[%clk 0:00:10.5]} 58...
Nf7 {[%clk 0:00:05]} 59. g3 {[%clk 0:00:10.1]} 59... Nh6 {[%clk 0:00:05.9]} 60.
Kg2 {[%clk 0:00:10.2]} 60... Nf7 {[%clk 0:00:06.5]} 61. Nd5 {[%clk 0:00:10]}
61... Ne5 {[%clk 0:00:06.9]} 62. Ne3 {[%clk 0:00:10]} 62... Kf6 {[%clk
0:00:07.2]} 63. Nd5+ {[%clk 0:00:10.1]} 63... Kg7 {[%clk 0:00:07.4]} 64. Ne3
{[%clk 0:00:10.3]} 64... Nd3 {[%clk 0:00:07.7]} 65. Nf5+ {[%clk 0:00:10.6]}
65... Kg6 {[%clk 0:00:08.1]} 66. Ne3 {[%clk 0:00:11.4]} 66... Ne1+ {[%clk
0:00:08.6]} 67. Kf2 {[%clk 0:00:11.5]} 67... Nd3+ {[%clk 0:00:09.5]} 68. Kg2
{[%clk 0:00:11.7]} 68... Nc5 {[%clk 0:00:09.8]} 69. Nd5 {[%clk 0:00:11.9]} 69...
Ne4 {[%clk 0:00:10.2]} 70. Ne3 {[%clk 0:00:12]} 70... Nf6 {[%clk 0:00:10.6]} 71.
Kf3 {[%clk 0:00:12.3]} 71... Kf7 {[%clk 0:00:10.8]} 72. g4 {[%clk 0:00:12.7]}
72... h4 {[%clk 0:00:10.6]} 73. Nf5 {[%clk 0:00:13.1]} 73... Kg6 {[%clk
0:00:11]} 74. Kg2 {[%clk 0:00:13.4]} 74... Nd5 {[%clk 0:00:10.9]} 75. Nd6 {[%clk
0:00:13]} 75... Nf4+ {[%clk 0:00:11]} 76. Kh2 {[%clk 0:00:13.6]} 76... Nd3
{[%clk 0:00:10]} 77. Ne4 {[%clk 0:00:13.8]} 77... Ne5 {[%clk 0:00:10.2]} 78. Kg2
{[%clk 0:00:13.9]} 78... Nf7 {[%clk 0:00:10.2]} 79. Kh2 {[%clk 0:00:14.2]} 79...
Ne5 {[%clk 0:00:10.8]} 80. Kg2 {[%clk 0:00:14.6]} 80... Nc4 {[%clk 0:00:10.7]}
81. Kh2 {[%clk 0:00:14.8]} 81... Ne3 {[%clk 0:00:10.7]} 82. Kg1 {[%clk 0:00:14]}
82... Nd5 {[%clk 0:00:10.7]} 83. Kh2 {[%clk 0:00:13.9]} 83... Nf6 {[%clk
0:00:09.4]} 84. Nd6 {[%clk 0:00:13.3]} 84... Nd7 {[%clk 0:00:08.1]} 85. Ne4
{[%clk 0:00:13.2]} 85... Ne5 {[%clk 0:00:08.7]} 1/2-1/2

[Event "Late-Titled-Tuesday-Blitz-February-06-2024"]
[Site "Chess.com"]
[Date "2024.02.06"]
[Round "4"]
[White "DonkyDonkyDonkey"]
[Black "maciek_92"]
[Result "1/2-1/2"]
[WhiteElo "2931"]
[BlackElo "2813"]
[TimeControl "180+1"]
[EndTime "14:41:03 PST"]
[Termination "Game drawn - insufficient material"]

1. d4 {[%clk 0:03:00.9]} 1... Nf6 {[%clk 0:03:00]} 2. Nc3 {[%clk 0:03:01.6]}
2... d5 {[%clk 0:03:00.1]} 3. Bf4 {[%clk 0:03:02.3]} 3... e6 {[%clk 0:02:59.8]}
4. Nb5 {[%clk 0:03:02.6]} 4... Na6 {[%clk 0:02:59.4]} 5. e3 {[%clk 0:03:03.3]}
5... Be7 {[%clk 0:02:59.1]} 6. h3 {[%clk 0:02:58.6]} 6... O-O {[%clk 0:02:59.4]}
7. Nf3 {[%clk 0:02:59.2]} 7... c6 {[%clk 0:03:00.1]} 8. Nc3 {[%clk 0:02:59.7]}
8... c5 {[%clk 0:03:00.8]} 9. Bxa6 {[%clk 0:02:59.5]} 9... bxa6 {[%clk
0:03:01.7]} 10. O-O {[%clk 0:03:00]} 10... Bd7 {[%clk 0:02:57]} 11. Ne5 {[%clk
0:02:57.2]} 11... Be8 {[%clk 0:02:57.6]} 12. a3 {[%clk 0:02:53.6]} 12... Rc8
{[%clk 0:02:55.6]} 13. Qe2 {[%clk 0:02:51.4]} 13... cxd4 {[%clk 0:02:50]} 14.
exd4 {[%clk 0:02:52.3]} 14... Qb6 {[%clk 0:02:50.5]} 15. Nd3 {[%clk 0:02:05.6]}
15... Qxd4 {[%clk 0:02:41.4]} 16. Rad1 {[%clk 0:02:06.1]} 16... Bb5 {[%clk
0:02:29.3]} 17. Be3 {[%clk 0:02:00.5]} 17... Bxd3 {[%clk 0:02:08.7]} 18. cxd3
{[%clk 0:01:54]} 18... Qh4 {[%clk 0:01:48.4]} 19. Bxa7 {[%clk 0:01:46.4]} 19...
Bxa3 {[%clk 0:01:36.9]} 20. d4 {[%clk 0:01:46.7]} 20... Bb4 {[%clk 0:01:25.7]}
21. Qxa6 {[%clk 0:01:45.6]} 21... Bxc3 {[%clk 0:01:21.5]} 22. bxc3 {[%clk
0:01:46.5]} 22... Ne4 {[%clk 0:01:18.3]} 23. Rd3 {[%clk 0:01:40.4]} 23... Ra8
{[%clk 0:01:12.9]} 24. Qb7 {[%clk 0:01:36.5]} 24... Rac8 {[%clk 0:00:41.3]} 25.
Qb2 {[%clk 0:01:11.1]} 25... Qe7 {[%clk 0:00:39.1]} 26. Ra1 {[%clk 0:01:00]}
26... Ra8 {[%clk 0:00:30.2]} 27. Bb6 {[%clk 0:01:00]} 27... Rab8 {[%clk
0:00:27.1]} 28. Rdd1 {[%clk 0:00:49.8]} 28... Nd6 {[%clk 0:00:18.5]} 29. Rdb1
{[%clk 0:00:38.3]} 29... Qb7 {[%clk 0:00:06.6]} 30. Qc2 {[%clk 0:00:35.6]} 30...
Qc6 {[%clk 0:00:05.6]} 31. Bc5 {[%clk 0:00:35.8]} 31... Rxb1+ {[%clk 0:00:06]}
32. Rxb1 {[%clk 0:00:36.7]} 32... Rd8 {[%clk 0:00:05.6]} 33. Rb6 {[%clk
0:00:36.4]} 33... Qc7 {[%clk 0:00:06.3]} 34. Qb1 {[%clk 0:00:35.6]} 34... Ne4
{[%clk 0:00:04.1]} 35. Rb7 {[%clk 0:00:28.6]} 35... Qf4 {[%clk 0:00:04.5]} 36.
Qe1 {[%clk 0:00:28.4]} 36... h5 {[%clk 0:00:04.1]} 37. Bb4 {[%clk 0:00:25.4]}
37... Ra8 {[%clk 0:00:02.4]} 38. f3 {[%clk 0:00:17.3]} 38... Ng3 {[%clk
0:00:02.6]} 39. c4 {[%clk 0:00:16.9]} 39... Ra2 {[%clk 0:00:02.3]} 40. Rd7
{[%clk 0:00:14.3]} 40... Ne2+ {[%clk 0:00:02.2]} 41. Kh1 {[%clk 0:00:14.8]}
41... Nxd4 {[%clk 0:00:01.7]} 42. Rd8+ {[%clk 0:00:14]} 42... Kh7 {[%clk
0:00:01.8]} 43. Qb1+ {[%clk 0:00:14.7]} 43... Rc2 {[%clk 0:00:02.5]} 44. cxd5
{[%clk 0:00:13.7]} 44... Qf5 {[%clk 0:00:02.7]} 45. Qg1 {[%clk 0:00:13.3]} 45...
Nxf3 {[%clk 0:00:02.8]} 46. Qf1 {[%clk 0:00:12.5]} 46... Nh4 {[%clk 0:00:02.4]}
47. Qxf5+ {[%clk 0:00:13.4]} 47... Nxf5 {[%clk 0:00:03.3]} 48. d6 {[%clk
0:00:13.6]} 48... Rc1+ {[%clk 0:00:03.4]} 49. Kh2 {[%clk 0:00:14]} 49... Rd1
{[%clk 0:00:04.3]} 50. g4 {[%clk 0:00:12.5]} 50... Kg6 {[%clk 0:00:05.2]} 51.
gxf5+ {[%clk 0:00:12.8]} 51... Kxf5 {[%clk 0:00:05.9]} 52. d7 {[%clk 0:00:13.5]}
52... e5 {[%clk 0:00:06.2]} 53. Kg2 {[%clk 0:00:12.8]} 53... f6 {[%clk
0:00:05.8]} 54. Kf2 {[%clk 0:00:13.2]} 54... g5 {[%clk 0:00:06.3]} 55. Ke2
{[%clk 0:00:10.3]} 55... Rd4 {[%clk 0:00:06.8]} 56. Bc3 {[%clk 0:00:10.6]} 56...
Rd5 {[%clk 0:00:07.3]} 57. Ba5 {[%clk 0:00:11.3]} 57... Ke6 {[%clk 0:00:07.3]}
58. Bd2 {[%clk 0:00:08]} 58... Rxd7 {[%clk 0:00:06.9]} 59. Rh8 {[%clk
0:00:08.8]} 59... h4 {[%clk 0:00:07]} 60. Rf8 {[%clk 0:00:08.9]} 60... Kf5
{[%clk 0:00:07.6]} 61. Bb4 {[%clk 0:00:09]} 61... Rb7 {[%clk 0:00:07.7]} 62. Bc5
{[%clk 0:00:08.9]} 62... Rc7 {[%clk 0:00:07.8]} 63. Bd6 {[%clk 0:00:09.1]} 63...
Rc6 {[%clk 0:00:08.4]} 64. Be7 {[%clk 0:00:09.5]} 64... Kg6 {[%clk 0:00:08.7]}
65. Kf3 {[%clk 0:00:09.2]} 65... Re6 {[%clk 0:00:08.6]} 66. Bb4 {[%clk 0:00:09]}
66... Kf5 {[%clk 0:00:09.1]} 67. Rc8 {[%clk 0:00:07.9]} 67... e4+ {[%clk
0:00:09.3]} 68. Ke3 {[%clk 0:00:08.3]} 68... g4 {[%clk 0:00:07.3]} 69. hxg4+
{[%clk 0:00:08]} 69... Kxg4 {[%clk 0:00:07.5]} 70. Rg8+ {[%clk 0:00:08.8]} 70...
Kf5 {[%clk 0:00:07.4]} 71. Be1 {[%clk 0:00:08.8]} 71... h3 {[%clk 0:00:05.1]}
72. Rh8 {[%clk 0:00:07.5]} 72... Rd6 {[%clk 0:00:05.8]} 73. Rh5+ {[%clk
0:00:07.3]} 73... Kg6 {[%clk 0:00:06.4]} 74. Rh8 {[%clk 0:00:06]} 74... f5
{[%clk 0:00:06.2]} 75. Kf4 {[%clk 0:00:05]} 75... Rd3 {[%clk 0:00:05.2]} 76. Ke5
{[%clk 0:00:05]} 76... Rf3 {[%clk 0:00:05]} 77. Rg8+ {[%clk 0:00:04.2]} 77...
Kf7 {[%clk 0:00:05.2]} 78. Rg5 {[%clk 0:00:04.6]} 78... h2 {[%clk 0:00:03.6]}
79. Rh5 {[%clk 0:00:05.1]} 79... Rf1 {[%clk 0:00:03]} 80. Rxh2 {[%clk
0:00:05.5]} 80... Rxe1 {[%clk 0:00:03.2]} 81. Kxf5 {[%clk 0:00:06.2]} 81... Ke7
{[%clk 0:00:04]} 82. Ke5 {[%clk 0:00:05.9]} 82... Kf7 {[%clk 0:00:04]} 83. Rh4
{[%clk 0:00:06.3]} 83... e3 {[%clk 0:00:03.9]} 84. Re4 {[%clk 0:00:05.9]} 84...
Kg6 {[%clk 0:00:04.6]} 85. Kf4 {[%clk 0:00:05.7]} 85... Rf1+ {[%clk 0:00:05]}
86. Kxe3 {[%clk 0:00:06.3]} 86... Re1+ {[%clk 0:00:05.8]} 87. Kf3 {[%clk
0:00:07.1]} 87... Rxe4 {[%clk 0:00:06.7]} 88. Kxe4 {[%clk 0:00:08]} 1/2-1/2

[Event "Late-Titled-Tuesday-Blitz-February-06-2024"]
[Site "Chess.com"]
[Date "2024.02.06"]
[Round "4"]
[White "bascheyaro"]
[Black "Rud_Makarian"]
[Result "0-1"]
[WhiteElo "2781"]
[BlackElo "3038"]
[TimeControl "180+1"]
[EndTime "14:41:06 PST"]
[Termination "Rud_Makarian won by resignation"]

1. d4 {[%clk 0:03:00.9]} 1... Nf6 {[%clk 0:02:58.8]} 2. Nf3 {[%clk 0:03:00.9]}
2... c5 {[%clk 0:02:57.1]} 3. e3 {[%clk 0:02:57.6]} 3... d5 {[%clk 0:02:57.2]}
4. Be2 {[%clk 0:02:57.7]} 4... Nc6 {[%clk 0:02:57]} 5. O-O {[%clk 0:02:57.3]}
5... cxd4 {[%clk 0:02:57.3]} 6. exd4 {[%clk 0:02:57.3]} 6... Bg4 {[%clk
0:02:55.8]} 7. c3 {[%clk 0:02:57.2]} 7... e6 {[%clk 0:02:56.1]} 8. Bf4 {[%clk
0:02:56.8]} 8... Bd6 {[%clk 0:02:55.2]} 9. Bxd6 {[%clk 0:02:57]} 9... Qxd6
{[%clk 0:02:56.1]} 10. Nbd2 {[%clk 0:02:57.6]} 10... O-O {[%clk 0:02:55.9]} 11.
Re1 {[%clk 0:02:58]} 11... Nd7 {[%clk 0:02:54.4]} 12. h3 {[%clk 0:02:53.7]}
12... Bh5 {[%clk 0:02:53.1]} 13. Nf1 {[%clk 0:02:54.1]} 13... Rab8 {[%clk
0:02:50.2]} 14. Ng3 {[%clk 0:02:53.6]} 14... Bg6 {[%clk 0:02:50.7]} 15. Bd3
{[%clk 0:02:52.4]} 15... Bxd3 {[%clk 0:02:49.5]} 16. Qxd3 {[%clk 0:02:53.3]}
16... b5 {[%clk 0:02:47.6]} 17. a3 {[%clk 0:02:52.8]} 17... a5 {[%clk
0:02:47.7]} 18. b4 {[%clk 0:02:51.9]} 18... h6 {[%clk 0:02:38.9]} 19. Nh5 {[%clk
0:02:49.8]} 19... g6 {[%clk 0:02:18.4]} 20. Ng3 {[%clk 0:02:46.1]} 20... Qf4
{[%clk 0:02:18.4]} 21. Ne2 {[%clk 0:02:34.5]} 21... Qf6 {[%clk 0:02:10.7]} 22.
Nc1 {[%clk 0:02:33]} 22... a4 {[%clk 0:01:56.9]} 23. Qd2 {[%clk 0:02:33]} 23...
Kg7 {[%clk 0:01:56.2]} 24. Nd3 {[%clk 0:02:33.1]} 24... Nb6 {[%clk 0:01:55]} 25.
Nc5 {[%clk 0:02:14]} 25... Nc4 {[%clk 0:01:55.1]} 26. Qe2 {[%clk 0:02:14.4]}
26... Rbd8 {[%clk 0:01:55]} 27. Nd2 {[%clk 0:02:08.9]} 27... Nd6 {[%clk
0:01:50.2]} 28. Qf1 {[%clk 0:01:59.3]} 28... Rfe8 {[%clk 0:01:48.6]} 29. f4
{[%clk 0:01:54.7]} 29... g5 {[%clk 0:01:35.6]} 30. g3 {[%clk 0:01:47.5]} 30...
gxf4 {[%clk 0:01:34.2]} 31. Qxf4 {[%clk 0:01:47.6]} 31... Qxf4 {[%clk
0:01:34.1]} 32. gxf4 {[%clk 0:01:48.5]} 32... Kf6 {[%clk 0:01:30.9]} 33. Kf2
{[%clk 0:01:48.4]} 33... Rg8 {[%clk 0:01:28.7]} 34. Nf3 {[%clk 0:01:44.8]} 34...
Nc4 {[%clk 0:01:19.2]} 35. Rg1 {[%clk 0:01:38.8]} 35... Rxg1 {[%clk 0:01:16.6]}
36. Nxg1 {[%clk 0:01:31.3]} 36... Rg8 {[%clk 0:01:15.8]} 37. Nf3 {[%clk
0:01:19.8]} 37... Kf5 {[%clk 0:01:10.8]} 38. Ne5 {[%clk 0:00:34.7]} 38... N6xe5
{[%clk 0:01:01.3]} 39. fxe5 {[%clk 0:00:35.1]} 39... h5 {[%clk 0:00:55.9]} 40.
Nb7 {[%clk 0:00:26.4]} 40... h4 {[%clk 0:00:49.7]} 41. Nd6+ {[%clk 0:00:22.4]}
41... Kf4 {[%clk 0:00:25.3]} 42. Nxb5 {[%clk 0:00:13.4]} 42... Rg3 {[%clk
0:00:24.4]} 43. Nd6 {[%clk 0:00:13.5]} 43... Rxh3 {[%clk 0:00:15.9]} 44. Nxf7
{[%clk 0:00:04.9]} 44... Rxc3 {[%clk 0:00:13.7]} 45. Nd8 {[%clk 0:00:05.4]}
45... Rc2+ {[%clk 0:00:13.2]} 46. Kg1 {[%clk 0:00:05.8]} 46... Kg3 {[%clk
0:00:12.5]} 47. Nxe6 {[%clk 0:00:05.8]} 47... Nd2 {[%clk 0:00:06.9]} 48. Ng5
{[%clk 0:00:05.4]} 48... Kg4 {[%clk 0:00:07.3]} 49. e6 {[%clk 0:00:01.7]} 49...
Kxg5 {[%clk 0:00:06.7]} 50. e7 {[%clk 0:00:01.3]} 50... Rc8 {[%clk 0:00:06.5]}
51. Rd1 {[%clk 0:00:01]} 51... Ne4 {[%clk 0:00:05.8]} 52. Kg2 {[%clk 0:00:01.3]}
52... Re8 {[%clk 0:00:06.1]} 53. b5 {[%clk 0:00:01.8]} 53... Rxe7 {[%clk
0:00:06.6]} 54. b6 {[%clk 0:00:02.7]} 54... Rb7 {[%clk 0:00:07.2]} 55. Rb1
{[%clk 0:00:03.4]} 55... Nd6 {[%clk 0:00:07]} 56. Rb4 {[%clk 0:00:03.7]} 56...
Kf4 {[%clk 0:00:07.1]} 57. Rxa4 {[%clk 0:00:04.1]} 57... Rxb6 {[%clk 0:00:07.4]}
58. Ra8 {[%clk 0:00:04.7]} 58... Ke4 {[%clk 0:00:07.7]} 59. Kh3 {[%clk
0:00:05.6]} 59... Kxd4 {[%clk 0:00:08.1]} 60. a4 {[%clk 0:00:05.9]} 60... Nc4
{[%clk 0:00:08.5]} 61. a5 {[%clk 0:00:06.8]} 61... Rb4 {[%clk 0:00:07.3]} 62. a6
{[%clk 0:00:07.7]} 62... Ra4 {[%clk 0:00:07.8]} 63. Kxh4 {[%clk 0:00:08.6]}
63... Nb6 {[%clk 0:00:06.8]} 64. Rg8 {[%clk 0:00:07.8]} 64... Kc5+ {[%clk
0:00:06.5]} 65. Kg3 {[%clk 0:00:08.7]} 65... Rxa6 {[%clk 0:00:07.1]} 66. Kf2
{[%clk 0:00:09.3]} 66... Nc4 {[%clk 0:00:07.5]} 67. Ke2 {[%clk 0:00:09.5]} 67...
Ra2+ {[%clk 0:00:07.2]} 68. Kd3 {[%clk 0:00:10]} 68... Ra3+ {[%clk 0:00:07.5]}
69. Kc2 {[%clk 0:00:10.6]} 69... Rh3 {[%clk 0:00:07.3]} 70. Rf8 {[%clk
0:00:10.7]} 70... Ne5 {[%clk 0:00:04.5]} 71. Rc8+ {[%clk 0:00:10.8]} 71... Kd4
{[%clk 0:00:04.7]} 72. Ra8 {[%clk 0:00:11.7]} 72... Rc3+ {[%clk 0:00:05]} 73.
Kd2 {[%clk 0:00:12.1]} 73... Nc4+ {[%clk 0:00:05.4]} 74. Ke2 {[%clk 0:00:12.6]}
74... Re3+ {[%clk 0:00:05.6]} 75. Kd1 {[%clk 0:00:13.2]} 75... Rh3 {[%clk
0:00:04.8]} 76. Rg8 {[%clk 0:00:12.8]} 76... Rh2 {[%clk 0:00:04.7]} 77. Ke1
{[%clk 0:00:13.2]} 77... Kd3 {[%clk 0:00:04.8]} 78. Rg3+ {[%clk 0:00:13]} 78...
Ne3 {[%clk 0:00:03.9]} 79. Rg2 {[%clk 0:00:13.6]} 79... Rh1+ {[%clk 0:00:03.2]}
80. Kf2 {[%clk 0:00:13.3]} 80... Nxg2 {[%clk 0:00:03.5]} 81. Kf3 {[%clk
0:00:13.7]} 81... Re1 {[%clk 0:00:03.8]} 0-1